fUST/lending_fUST_20250708
["ID","MTS","AMOUNT","RATE_DAILY","PERIOD"]
[370200038,1751913039960,-460.0,0.00019178,2]
[370200040,1751913039969,-460.0,0.00019178,2]
[370200042,1751913039979,-460.0,0.00019178,2]
[370200044,1751913039988,-460.0,0.00019178,2]
[370200046,1751913039997,-460.0,0.00019178,2]
[370200048,1751913040007,-460.0,0.00019178,2]
[370200050,1751913040016,-460.0,0.00019178,2]
[370200052,1751913040026,-460.0,0.00019178,2]
[370200054,1751913040035,-460.0,0.00019178,2]
[370200056,1751913040044,-460.0,0.00019178,2]
[370200058,1751913040053,-460.0,0.00019178,2]
[370200060,1751913040062,-460.0,0.00019178,2]
[370200062,1751913040071,-460.0,0.00019178,2]
[370200064,1751913040080,-460.0,0.00019178,2]
[370200066,1751913040089,-460.0,0.00019178,2]
[370200068,1751913040099,-460.0,0.00019178,2]
[370200070,1751913040108,-460.0,0.00019178,2]
[370200071,1751913040117,-1426.34,0.00019178,2]
[370200073,1751913040127,-787.89,0.00019178,2]
[370200076,1751913040137,-460.0,0.00019178,2]
[370200078,1751913040146,-460.0,0.00019178,2]
[370200079,1751913040155,-284.73578399,0.00019178,2]
[370200081,1751913040165,-460.0,0.00019178,2]
[370200083,1751913040175,-460.0,0.00019178,2]
[370200085,1751913040187,-3957.78,0.00019178,2]
[370200088,1751913040204,-460.0,0.00019178,2]
[370200091,1751913040216,-460.0,0.00019178,2]
[370200093,1751913040228,-1763.27,0.00019178,2]
[370200095,1751913040238,-460.0,0.00019178,2]
[370200097,1751913040249,-460.0,0.00019178,2]
[370200098,1751913040260,-5000.0,0.00019178,2]
[370200101,1751913040272,-5000.0,0.00019178,2]
[370200103,1751913040283,-1036.81544639,0.00019178,2]
[370200115,1751913040427,-2043.59729491,0.00019178,2]
[370200116,1751913040458,-1189.39988749,0.00019178,2]
[370200117,1751913040472,-702.048984,0.00019178,2]
[370200118,1751913040485,-28.13838721,0.00019178,2]
[370200119,1751913040498,-187.97924,0.00019178,2]
[370200120,1751913040509,-234.1481734,0.00019178,2]
[370200121,1751913040526,-431.8518266,0.00019178,2]
[370200122,1751913040538,-500.0,0.0001926,2]
[370200123,1751913040549,-151.0,0.0001926,2]
[370200124,1751913040561,-500.0,0.0001926,2]
[370200125,1751913040572,-151.0,0.0001926,2]
[370200127,1751913040584,-500.0,0.0001926,2]
[370200128,1751913040597,-500.0,0.00019287,2]
[370200130,1751913040608,-500.0,0.00019287,2]
[370200132,1751913040621,-36.33686843,0.00019287,2]
[370200134,1751913040643,-463.66313157,0.00019287,2]
[370200137,1751913040656,-500.0,0.00019315,2]
[370200138,1751913040667,-500.0,0.00019315,2]
[370200140,1751913040679,-500.0,0.00019315,2]
[370200143,1751913040690,-500.0,0.00019342,2]
[370200144,1751913040702,-405.17189163,0.00019342,2]
[370200146,1751913040714,-500.0,0.00019342,2]
[370200149,1751913040726,-500.0,0.0001937,2]
[370200151,1751913040739,-500.0,0.0001937,2]
[370200152,1751913040754,-2752.43542433,0.00019383,2]
[370200154,1751913040766,-256.73739429,0.00019397,2]
[370200157,1751913040780,-500.0,0.00019397,2]
[370200159,1751913040792,-500.0,0.00019424,2]
[370200161,1751913040803,-460.0,0.00019451,2]
[370200163,1751913040815,-460.0,0.00019451,2]
[370200165,1751913040827,-460.0,0.00019451,2]
[370200166,1751913040842,-460.0,0.00019451,2]
[370200167,1751913040853,-460.0,0.00019451,2]
[370200168,1751913040865,-500.0,0.00019452,2]
[370200169,1751913040879,-460.0,0.00019452,2]
[370200170,1751913040890,-460.0,0.00019452,2]
[370200171,1751913040901,-460.0,0.00019452,2]
[370200172,1751913040912,-460.0,0.00019452,2]
[370200173,1751913040923,-460.0,0.00019452,2]
[370200174,1751913040934,-460.0,0.00019452,2]
[370200175,1751913040946,-460.0,0.00019452,2]
[370200176,1751913040978,-460.0,0.00019452,2]
[370200177,1751913040989,-460.0,0.00019452,2]
[370200178,1751913041001,-174.64083052,0.00019452,2]
[370200179,1751913041013,-460.0,0.00019452,2]
[370200180,1751913041024,-460.0,0.00019452,2]
[370200181,1751913041035,-460.0,0.00019452,2]
[370200196,1751913041203,-460.0,0.00019452,2]
[370200198,1751913041215,-460.0,0.00019452,2]
[370200201,1751913041227,-460.0,0.00019452,2]
[370200203,1751913041239,-680.88,0.00019452,2]
[370200205,1751913041251,-968.03,0.00019452,2]
[370200207,1751913041262,-460.0,0.00019452,2]
[370200209,1751913041273,-463.59,0.00019452,2]
[370200211,1751913041284,-460.0,0.00019452,2]
[370200213,1751913041295,-460.0,0.00019452,2]
[370200215,1751913041305,-460.0,0.00019452,2]
[370200217,1751913041316,-460.0,0.00019452,2]
[370200219,1751913041327,-460.0,0.00019452,2]
[370200221,1751913041337,-460.0,0.00019452,2]
[370200223,1751913041347,-460.0,0.00019452,2]
[370200225,1751913041358,-460.0,0.00019452,2]
[370200227,1751913041370,-460.0,0.00019452,2]
[370200229,1751913041380,-460.0,0.00019452,2]
[370200231,1751913041391,-460.0,0.00019452,2]
[370200232,1751913041402,-460.0,0.00019452,2]
[370200235,1751913041412,-899.29,0.00019452,2]
[370200237,1751913041422,-460.0,0.00019452,2]
[370200239,1751913041433,-460.0,0.00019452,2]
[370200241,1751913041443,-460.0,0.00019452,2]
[370200243,1751913041464,-460.0,0.00019452,2]
[370200244,1751913041474,-460.0,0.00019452,2]
[370200247,1751913041485,-460.0,0.00019452,2]
[370200249,1751913041499,-460.0,0.00019452,2]
[370200251,1751913041510,-941.19,0.00019452,2]
[370200253,1751913041520,-460.0,0.00019452,2]
[370200255,1751913041530,-460.0,0.00019452,2]
[370200257,1751913041539,-460.0,0.00019452,2]
[370200259,1751913041549,-460.0,0.00019452,2]
[370200260,1751913041559,-460.0,0.00019452,2]
[370200263,1751913041569,-460.0,0.00019452,2]
[370200265,1751913041579,-460.0,0.00019452,2]
[370200266,1751913041589,-460.0,0.00019452,2]
[370200268,1751913041598,-460.0,0.00019452,2]
[370200270,1751913041608,-270.83884719,0.00019452,2]
[370200272,1751913041618,-460.0,0.00019452,2]
[370200274,1751913041627,-3068.15,0.00019452,2]
[370200276,1751913041636,-470.91,0.00019452,2]
[370200279,1751913041648,-460.0,0.00019452,2]
[370200280,1751913041658,-1220.52,0.00019452,2]
[370200283,1751913041669,-460.0,0.00019452,2]
[370200284,1751913041679,-460.0,0.00019452,2]
[370200286,1751913041690,-460.0,0.00019452,2]
[370200289,1751913041702,-460.0,0.00019452,2]
[370200291,1751913041714,-983.75,0.00019452,2]
[370200293,1751913041724,-460.0,0.00019452,2]
[370200295,1751913041734,-460.0,0.00019452,2]
[370200297,1751913041746,-460.0,0.00019452,2]
[370200299,1751913041756,-460.0,0.00019452,2]
[370200301,1751913041766,-460.0,0.00019452,2]
[370200303,1751913041775,-460.0,0.00019452,2]
[370200305,1751913041784,-979.24,0.00019452,2]
[370200307,1751913041797,-727.17,0.00019452,2]
[370200309,1751913041807,-460.0,0.00019452,2]
[370200311,1751913041816,-460.0,0.00019452,2]
[370200313,1751913041825,-460.0,0.00019452,2]
[370200315,1751913041834,-460.0,0.00019452,2]
[370200317,1751913041844,-1466.08,0.00019452,2]
[370200319,1751913041853,-460.0,0.00019452,2]
[370200321,1751913041864,-460.0,0.00019452,2]
[370200323,1751913041874,-460.0,0.00019452,2]
[370200325,1751913041884,-460.0,0.00019452,2]
[370200327,1751913041894,-1937.98,0.00019452,2]
[370200329,1751913041903,-460.0,0.00019452,2]
[370200331,1751913041912,-460.0,0.00019452,2]
[370200333,1751913041921,-460.0,0.00019452,2]
[370200335,1751913041931,-738.21,0.00019452,2]
[370200337,1751913041940,-460.0,0.00019452,2]
[370200339,1751913041949,-460.0,0.00019452,2]
[370200341,1751913041963,-165.2,0.00019452,2]
[370200343,1751913041973,-460.0,0.00019452,2]
[370200344,1751913041983,-942.1,0.00019452,2]
[370200346,1751913041993,-460.0,0.00019452,2]
[370200349,1751913042004,-460.0,0.00019452,2]
[370200350,1751913042015,-460.0,0.00019452,2]
[370200352,1751913042024,-485.3,0.00019452,2]
[370200354,1751913042034,-460.0,0.00019452,2]
[370200356,1751913042043,-460.0,0.00019452,2]
[370200358,1751913042053,-808.84,0.00019452,2]
[370200361,1751913042063,-460.0,0.00019452,2]
[370200363,1751913042073,-460.0,0.00019452,2]
[370200364,1751913042082,-460.0,0.00019452,2]
[370200367,1751913042095,-460.0,0.00019452,2]
[370200369,1751913042107,-460.0,0.00019452,2]
[370200370,1751913042116,-460.0,0.00019452,2]
[370200372,1751913042126,-460.0,0.00019452,2]
[370200375,1751913042136,-460.0,0.00019452,2]
[370200377,1751913042145,-460.0,0.00019452,2]
[370200379,1751913042155,-460.0,0.00019452,2]
[370200381,1751913042165,-460.0,0.00019452,2]
[370200383,1751913042175,-460.0,0.00019452,2]
[370200384,1751913042184,-460.0,0.00019452,2]
[370200387,1751913042193,-460.0,0.00019452,2]
[370200388,1751913042207,-460.0,0.00019452,2]
[370200391,1751913042216,-787.89,0.00019452,2]
[370200392,1751913042226,-460.0,0.00019452,2]
[370200394,1751913042235,-1426.34,0.00019452,2]
[370200396,1751913042245,-460.0,0.00019452,2]
[370200398,1751913042254,-460.0,0.00019452,2]
[370200400,1751913042264,-460.0,0.00019452,2]
[370200404,1751913042274,-3957.78,0.00019452,2]
[370200407,1751913042284,-460.0,0.00019452,2]
[370200408,1751913042294,-1763.27,0.00019452,2]
[370200411,1751913042304,-460.0,0.00019452,2]
[370200414,1751913042313,-460.0,0.00019452,2]
[370200417,1751913042324,-500.0,0.00019479,2]
[370200419,1751913042334,-500.0,0.00019507,2]
[370200421,1751913042343,-500.0,0.00019534,2]
[370200423,1751913042353,-500.0,0.00019561,2]
[370200424,1751913042362,-253.12949569,0.00019581,2]
[370200426,1751913042372,-500.0,0.00019589,2]
[370200428,1751913042382,-183.0,0.00019616,2]
[370200430,1751913042392,-2752.43542433,0.00019624,2]
[370200432,1751913042402,-243.816495,0.00019678,2]
[370200436,1751913042412,-243.816495,0.00019678,2]
[370200438,1751913042421,-1000.0,0.00019721,2]
[370200442,1751913042433,-1000.0,0.00019721,2]
[370200444,1751913042442,-339.5445092,0.00019721,2]
[370200446,1751913042453,-1000.0,0.00019721,2]
[370200448,1751913042463,-1000.0,0.00019721,2]
[370200451,1751913042472,-151.0,0.00019721,2]
[370200454,1751913042482,-151.0,0.00019721,2]
[370200457,1751913042491,-460.0,0.00019725,2]
[370200460,1751913042501,-152.87,0.00019726,2]
[370200463,1751913042510,-460.0,0.00019726,2]
[370200466,1751913042520,-460.0,0.00019726,2]
[370200468,1751913042529,-460.0,0.00019726,2]
[370200470,1751913042539,-460.0,0.00019726,2]
[370200473,1751913042548,-460.0,0.00019726,2]
[370200478,1751913042557,-460.0,0.00019726,2]
[370200481,1751913042566,-460.0,0.00019726,2]
[370200483,1751913042576,-151.0,0.00019726,2]
[370200485,1751913042585,-210.2174,0.00019726,2]
[370200487,1751913042594,-151.0,0.00019726,2]
[370200489,1751913042603,-151.0,0.00019726,2]
[370200491,1751913042612,-460.0,0.00019726,2]
[370200493,1751913042621,-151.0,0.00019726,2]
[370200495,1751913042630,-151.0,0.00019726,2]
[370200497,1751913042639,-151.0,0.00019726,2]
[370200499,1751913042649,-151.0,0.00019726,2]
[370200501,1751913042658,-151.0,0.00019726,2]
[370200503,1751913042667,-460.0,0.00019726,2]
[370200504,1751913042676,-460.0,0.00019726,2]
[370200506,1751913042685,-155.887469,0.00019726,2]
[370200508,1751913042695,-201.773008,0.00019726,2]
[370200510,1751913042706,-155.887469,0.00019726,2]
[370200512,1751913042716,-201.773008,0.00019726,2]
[370200515,1751913042725,-460.0,0.00019726,2]
[370200516,1751913042735,-239.197162,0.00019726,2]
[370200519,1751913042745,-460.0,0.00019726,2]
[370200520,1751913042753,-239.197162,0.00019726,2]
[370200522,1751913042763,-680.88,0.00019726,2]
[370200524,1751913042774,-245.119118,0.00019726,2]
[370200526,1751913042783,-968.03,0.00019726,2]
[370200528,1751913042793,-245.119118,0.00019726,2]
[370200531,1751913042804,-463.59,0.00019726,2]
[370200532,1751913042814,-151.0,0.00019726,2]
[370200535,1751913042823,-460.0,0.00019726,2]
[370200537,1751913042833,-460.0,0.00019726,2]
[370200539,1751913042843,-460.0,0.00019726,2]
[370200541,1751913042853,-460.0,0.00019726,2]
[370200543,1751913042863,-460.0,0.00019726,2]
[370200545,1751913042872,-460.0,0.00019726,2]
[370200547,1751913042881,-899.29,0.00019726,2]
[370200548,1751913042891,-460.0,0.00019726,2]
[370200550,1751913042900,-500.0,0.00019726,2]
[370200552,1751913042910,-244.665713,0.00019726,2]
[370200554,1751913042919,-284.990915,0.00019726,2]
[370200556,1751913042928,-244.665713,0.00019726,2]
[370200558,1751913042938,-460.0,0.00019726,2]
[370200560,1751913042947,-284.990915,0.00019726,2]
[370200562,1751913042958,-151.0,0.00019726,2]
[370200564,1751913042967,-213.902922,0.00019726,2]
[370200566,1751913042976,-460.0,0.00019726,2]
[370200568,1751913042986,-460.0,0.00019726,2]
[370200570,1751913042995,-151.0,0.00019726,2]
[370200573,1751913043004,-941.19,0.00019726,2]
[370200575,1751913043014,-460.0,0.00019726,2]
[370200576,1751913043023,-151.0,0.00019726,2]
[370200578,1751913043032,-460.0,0.00019726,2]
[370200581,1751913043041,-201.47067667,0.00019726,2]
[370200583,1751913043051,-460.0,0.00019726,2]
[370200585,1751913043060,-356.27553127,0.00019726,2]
[370200587,1751913043070,-460.0,0.00019726,2]
[370200589,1751913043080,-3068.15,0.00019726,2]
[370200591,1751913043089,-1220.52,0.00019726,2]
[370200593,1751913043098,-460.0,0.00019726,2]
[370200594,1751913043107,-460.0,0.00019726,2]
[370200596,1751913043116,-460.0,0.00019726,2]
[370200599,1751913043126,-460.0,0.00019726,2]
[370200601,1751913043135,-151.0,0.00019726,2]
[370200602,1751913043144,-283.46034411,0.00019726,2]
[370200604,1751913043153,-983.75,0.00019726,2]
[370200606,1751913043162,-460.0,0.00019726,2]
[370200608,1751913043172,-151.0,0.00019726,2]
[370200609,1751913043181,-460.0,0.00019726,2]
[370200610,1751913043191,-331.11951018,0.00019726,2]
[370200611,1751913043200,-460.0,0.00019726,2]
[370200612,1751913043209,-151.0,0.00019726,2]
[370200613,1751913043219,-451.29105736,0.00019726,2]
[370200614,1751913043228,-979.24,0.00019726,2]
[370200615,1751913043237,-727.17,0.00019726,2]
[370200616,1751913043246,-151.0,0.00019726,2]
[370200617,1751913043256,-151.0,0.00019726,2]
[370200618,1751913043265,-460.0,0.00019726,2]
[370200619,1751913043275,-460.0,0.00019726,2]
[370200620,1751913043284,-1466.08,0.00019726,2]
[370200621,1751913043293,-460.0,0.00019726,2]
[370200622,1751913043303,-460.0,0.00019726,2]
[370200623,1751913043312,-460.0,0.00019726,2]
[370200624,1751913043321,-460.0,0.00019726,2]
[370200625,1751913043330,-1937.98,0.00019726,2]
[370200626,1751913043340,-460.0,0.00019726,2]
[370200627,1751913043349,-460.0,0.00019726,2]
[370200628,1751913043359,-460.0,0.00019726,2]
[370200629,1751913043368,-738.21,0.00019726,2]
[370200630,1751913043379,-460.0,0.00019726,2]
[370200631,1751913043388,-460.0,0.00019726,2]
[370200632,1751913043398,-942.1,0.00019726,2]
[370200633,1751913043407,-460.0,0.00019726,2]
[370200634,1751913043417,-460.0,0.00019726,2]
[370200635,1751913043427,-460.0,0.00019726,2]
[370200636,1751913043436,-485.3,0.00019726,2]
[370200637,1751913043445,-460.0,0.00019726,2]
[370200638,1751913043456,-151.0,0.00019726,2]
[370200640,1751913043465,-460.0,0.00019726,2]
[370200641,1751913043474,-808.84,0.00019726,2]
[370200643,1751913043483,-513.34,0.00019726,2]
[370200645,1751913043493,-151.0,0.00019726,2]
[370200647,1751913043502,-151.596433,0.00019726,2]
[370200649,1751913043511,-151.596433,0.00019726,2]
[370200651,1751913043520,-460.0,0.00019726,2]
[370200653,1751913043529,-460.0,0.00019726,2]
[370200655,1751913043538,-460.0,0.00019726,2]
[370200658,1751913043548,-460.0,0.00019726,2]
[370200661,1751913043557,-167.163414,0.00019726,2]
[370200664,1751913043566,-460.0,0.00019726,2]
[370200667,1751913043576,-460.0,0.00019726,2]
[370200670,1751913043585,-460.0,0.00019726,2]
[370200673,1751913043594,-167.163414,0.00019726,2]
[370200675,1751913043603,-460.0,0.00019726,2]
[370200677,1751913043612,-460.0,0.00019726,2]
[370200679,1751913043621,-460.0,0.00019726,2]
[370200681,1751913043630,-460.0,0.00019726,2]
[370200684,1751913043640,-787.89,0.00019726,2]
[370200687,1751913043649,-460.0,0.00019726,2]
[370200690,1751913043658,-1426.34,0.00019726,2]
[370200692,1751913043667,-460.0,0.00019726,2]
[370200695,1751913043676,-460.0,0.00019726,2]
[370200696,1751913043685,-3957.78,0.00019726,2]
[370200698,1751913043694,-460.0,0.00019726,2]
[370200700,1751913043705,-1763.27,0.00019726,2]
[370200702,1751913043714,-460.0,0.00019726,2]
[370200704,1751913043723,-151.0,0.00019741,2]
[370200707,1751913043733,-151.0,0.00019741,2]
[370200709,1751913043743,-151.0,0.00019741,2]
[370200711,1751913043752,-151.0,0.00019741,2]
[370200712,1751913043761,-161.90704,0.00019799,2]
[370200715,1751913043770,-12584.46609586,0.000198,2]
[370200717,1751913043780,-230.48668418,0.000198,2]
[370200719,1751913043790,-837.79946008,0.000198,2]
[370200721,1751913043802,-160.0,0.000198,2]
[370200723,1751913043811,-160.0,0.000198,2]
[370200725,1751913043823,-215.21338352,0.000198,2]
[370200727,1751913043832,-214.06929976,0.000198,2]
[370200729,1751913043842,-848.27993403,0.000198,2]
[370200731,1751913043851,-160.0,0.000198,2]
[370200733,1751913043861,-160.0,0.000198,2]
[370200735,1751913043871,-160.0,0.000198,2]
[370200736,1751913043880,-160.0,0.000198,2]
[370200738,1751913043889,-160.0,0.000198,2]
[370200740,1751913043899,-160.0,0.000198,2]
[370200742,1751913043908,-160.0,0.000198,2]
[370200744,1751913043917,-2752.43542433,0.00019866,2]
[370200746,1751913043927,-1200.89951158,0.00019884,2]
[370200748,1751913043936,-228.21707167,0.00019999,2]
[370200750,1751913043945,-151.0,0.00019999,2]
[370200752,1751913043956,-151.0,0.00019999,2]
[370200754,1751913043965,-151.0,0.00019999,2]
[370200756,1751913043974,-151.0,0.00019999,2]
[370200758,1751913043983,-429.60078,0.00019999,2]
[370200760,1751913043992,-429.60078,0.00019999,2]
[370200762,1751913044002,-335.248096,0.00019999,2]
[370200764,1751913044012,-335.248096,0.00019999,2]
[370200766,1751913044021,-243.816495,0.00019999,2]
[370200768,1751913044031,-243.816495,0.00019999,2]
[370200770,1751913044041,-460.0,0.0002,2]
[370200772,1751913044050,-532.8,0.0002,2]
[370200774,1751913044059,-460.0,0.0002,2]
[370200776,1751913044068,-460.0,0.0002,2]
[370200778,1751913044078,-460.0,0.0002,2]
[370200780,1751913044087,-151.0,0.0002,2]
[370200782,1751913044096,-15270.0,0.0002,2]
[370200784,1751913044106,-219.0205892,0.0002,2]
[370200786,1751913044115,-460.0,0.0002,2]
[370200788,1751913044124,-460.0,0.0002,2]
[370200790,1751913044133,-364.45,0.0002,2]
[370200792,1751913044143,-680.88,0.0002,2]
[370200794,1751913044152,-245.119118,0.0002,2]
[370200796,1751913044162,-968.03,0.0002,2]
[370200798,1751913044171,-245.119118,0.0002,2]
[370200813,1751913044300,-463.59,0.0002,2]
[370200815,1751913044310,-151.0,0.0002,2]
[370200817,1751913044319,-460.0,0.0002,2]
[370200819,1751913044329,-460.0,0.0002,2]
[370200821,1751913044338,-460.0,0.0002,2]
[370200823,1751913044348,-460.0,0.0002,2]
[370200825,1751913044357,-899.29,0.0002,2]
[370200827,1751913044366,-460.0,0.0002,2]
[370200829,1751913044376,-460.0,0.0002,2]
[370200831,1751913044385,-284.990915,0.0002,2]
[370200833,1751913044395,-460.0,0.0002,2]
[370200835,1751913044404,-284.990915,0.0002,2]
[370200837,1751913044413,-151.0,0.0002,2]
[370200839,1751913044424,-460.0,0.0002,2]
[370200841,1751913044433,-460.0,0.0002,2]
[370200843,1751913044442,-151.0,0.0002,2]
[370200845,1751913044453,-941.19,0.0002,2]
[370200847,1751913044462,-460.0,0.0002,2]
[370200849,1751913044471,-151.0,0.0002,2]
[370200851,1751913044480,-460.0,0.0002,2]
[370200853,1751913044492,-460.0,0.0002,2]
[370200855,1751913044502,-460.0,0.0002,2]
[370200857,1751913044511,-3068.15,0.0002,2]
[370200859,1751913044520,-1220.52,0.0002,2]
[370200861,1751913044529,-460.0,0.0002,2]
[370200863,1751913044538,-460.0,0.0002,2]
[370200865,1751913044547,-460.0,0.0002,2]
[370200867,1751913044557,-460.0,0.0002,2]
[370200869,1751913044566,-151.0,0.0002,2]
[370200871,1751913044576,-460.0,0.0002,2]
[370200873,1751913044585,-983.75,0.0002,2]
[370200875,1751913044594,-151.0,0.0002,2]
[370200877,1751913044604,-495.07,0.0002,2]
[370200879,1751913044613,-460.0,0.0002,2]
[370200881,1751913044622,-151.0,0.0002,2]
[370200883,1751913044631,-979.24,0.0002,2]
[370200885,1751913044641,-727.17,0.0002,2]
[370200887,1751913044650,-151.0,0.0002,2]
[370200889,1751913044659,-151.0,0.0002,2]
[370200891,1751913044668,-460.0,0.0002,2]
[370200893,1751913044678,-1466.08,0.0002,2]
[370200895,1751913044687,-460.0,0.0002,2]
[370200897,1751913044696,-460.0,0.0002,2]
[370200899,1751913044706,-1937.98,0.0002,2]
[370200901,1751913044715,-460.0,0.0002,2]
[370200903,1751913044724,-460.0,0.0002,2]
[370200905,1751913044733,-738.21,0.0002,2]
[370200907,1751913044742,-426.0415615,0.0002,2]
[370200909,1751913044752,-460.0,0.0002,2]
[370200911,1751913044761,-942.1,0.0002,2]
[370200912,1751913044771,-460.0,0.0002,2]
[370200914,1751913044780,-460.0,0.0002,2]
[370200916,1751913044791,-460.0,0.0002,2]
[370200918,1751913044801,-485.3,0.0002,2]
[370200920,1751913044810,-460.0,0.0002,2]
[370200922,1751913044820,-151.0,0.0002,2]
[370200924,1751913044829,-460.0,0.0002,2]
[370200926,1751913044839,-808.84,0.0002,2]
[370200928,1751913044848,-151.0,0.0002,2]
[370200930,1751913044857,-151.596433,0.0002,2]
[370200933,1751913044867,-151.596433,0.0002,2]
[370200935,1751913044876,-460.0,0.0002,2]
[370200936,1751913044886,-460.0,0.0002,2]
[370200939,1751913044895,-167.163414,0.0002,2]
[370200941,1751913044904,-460.0,0.0002,2]
[370200942,1751913044914,-460.0,0.0002,2]
[370200945,1751913044923,-460.0,0.0002,2]
[370200947,1751913044933,-167.163414,0.0002,2]
[370200949,1751913044942,-460.0,0.0002,2]
[370200951,1751913044951,-460.0,0.0002,2]
[370200952,1751913044961,-317.09260757,0.0002,2]
[370200954,1751913044970,-787.89,0.0002,2]
[370200957,1751913044981,-460.0,0.0002,2]
[370200958,1751913044990,-1426.34,0.0002,2]
[370200960,1751913045002,-3957.78,0.0002,2]
[370200963,1751913045012,-460.0,0.0002,2]
[370200965,1751913045021,-1763.27,0.0002,2]
[370200967,1751913045031,-460.0,0.0002,2]
[370200969,1751913045040,-2752.43542433,0.00020107,2]
[370200971,1751913045049,-151.0,0.00020107,2]
[370200973,1751913045059,-151.0,0.00020107,2]
[370200974,1751913045068,-151.0,0.00020107,2]
[370200976,1751913045077,-151.0,0.00020107,2]
[370200978,1751913045086,-151.0,0.00020107,2]
[370200980,1751913045095,-151.0,0.00020107,2]
[370200982,1751913045105,-151.0,0.00020107,2]
[370200984,1751913045114,-151.0,0.00020107,2]
[370200986,1751913045123,-151.0,0.00020107,2]
[370200988,1751913045133,-155.887469,0.00020107,2]
[370200991,1751913045142,-201.773008,0.00020107,2]
[370200993,1751913045151,-155.887469,0.00020107,2]
[370200995,1751913045161,-201.773008,0.00020107,2]
[370200998,1751913045171,-239.197162,0.00020107,2]
[370201000,1751913045182,-239.197162,0.00020107,2]
[370201001,1751913045192,-244.665713,0.00020107,2]
[370201003,1751913045202,-244.665713,0.00020107,2]
[370201006,1751913045212,-151.0,0.00020107,2]
[370201007,1751913045221,-857.0772436,0.0002011,2]
[370201009,1751913045230,-177.1352764,0.00020219,2]
[370201011,1751913045239,-1626.54,0.00020249,3]
[370201013,1751913045248,-813.28,0.00020249,3]
[370201015,1751913045258,-406.64,0.00020249,3]
[370201017,1751913045267,-1000.0,0.00020268,2]
[370201019,1751913045276,-460.0,0.00020273,2]
[370201022,1751913045287,-151.0,0.00020273,2]
[370201024,1751913045296,-151.0,0.00020273,2]
[370201025,1751913045306,-460.0,0.00020273,2]
[370201029,1751913045316,-335.248096,0.00020273,2]
[370201032,1751913045325,-335.248096,0.00020273,2]
[370201035,1751913045334,-460.0,0.00020273,2]
[370201038,1751913045344,-460.0,0.00020273,2]
[370201041,1751913045354,-680.88,0.00020273,2]
[370201044,1751913045363,-968.03,0.00020273,2]
[370201047,1751913045372,-463.59,0.00020273,2]
[370201050,1751913045382,-151.0,0.00020273,2]
[370201053,1751913045392,-460.0,0.00020273,2]